Workbook

Sheet 面试成绩 (2)
A1: 修文县2023年公开选调教师（教研员）总成绩
A2: 准考证号 | B2: 姓名 | C2: 报考岗位 | D2: 报考岗位代码 | E2: 笔试成绩 | F2: 折合分数 | G2: 面试成绩 | H2: 折合分数 | I2: 总分
A3: jsxd2023017 | B3: 王兰 | C3: 四小语文教师 | D3: 01 | E3: 80 | F3: =E3*0.4 -> 32 | G3: 83.83 | H3: =G3*0.6 -> 50.298 | I3: =ROUND((F3+H3),2) -> 82.3
A4: jsxd2023018 | B4: 李丽 | C4: 四小语文教师 | D4: 01 | E4: 72 | F4: 28.8 | G4: 85.83 | H4: =G4*0.6 -> 51.498 | I4: =ROUND((F4+H4),2) -> 80.3
A5: jsxd2023016 | B5: 张明毓 | C5: 四小语文教师 | D5: 01 | E5: 66.5 | F5: 26.6 | G5: 89.30 | H5: =G5*0.6 -> 53.58 | I5: 80.18
A6: jsxd2023021 | B6: 曾娅 | C6: 四小语文教师 | D6: 01 | E6: 66 | F6: 26.4 | G6: 82.67 | H6: =G6*0.6 -> 49.602 | I6: 76
A7: jsxd2023019 | B7: 方燕 | C7: 四小语文教师 | D7: 01 | E7: 70.5 | F7: 28.2 | G7: 79.40 | H7: =G7*0.6 -> 47.64 | I7: 75.84
A8: jsxd2023020 | B8: 谌宏健 | C8: 四小语文教师 | D8: 01 | E8: 73 | F8: 29.2 | G8: 放弃 | H8: 0 | I8: 29.2
A9: jsxd2023155 | B9: 付坤玲 | C9: 中小学音乐教研员 | D9: 01 | E9: 84.5 | F9: 33.8 | G9: 89.64 | H9: =G9*0.6 -> 53.784 | I9: 87.58
A10: jsxd2023153 | B10: 雷照付 | C10: 中小学音乐教研员 | D10: 01 | E10: 60 | F10: 24 | G10: 72.98 | H10: =G10*0.6 -> 43.788 | I10: 67.79
A11: jsxd2023154 | B11: 付娟 | C11: 中小学音乐教研员 | D11: 01 | E11: 67.5 | F11: 27 | G11: 缺考 | H11: 0 | I11: 27
A12: jsxd2023036 | B12: 杨艳 | C12: 四小数学教师 | D12: 02 | E12: 79 | F12: 31.6 | G12: 82.16 | H12: =G12*0.6 -> 49.296 | I12: 80.9
A13: jsxd2023037 | B13: 王瑶 | C13: 四小数学教师 | D13: 02 | E13: 60 | F13: 24 | G13: 85.33 | H13: =G13*0.6 -> 51.198 | I13: 75.2
A14: jsxd2023034 | B14: 张立恒 | C14: 四小数学教师 | D14: 02 | E14: 60 | F14: 24 | G14: 80.00 | H14: =G14*0.6 -> 48 | I14: 72
A15: jsxd2023038 | B15: 王成文 | C15: 四小数学教师 | D15: 02 | E15: 60.5 | F15: 24.2 | G15: 76.66 | H15: =G15*0.6 -> 45.996 | I15: 70.2
A16: jsxd2023039 | B16: 何龙香 | C16: 四小数学教师 | D16: 02 | E16: 51 | F16: 20.4 | G16: 76.66 | H16: =G16*0.6 -> 45.996 | I16: 66.4
A17: jsxd2023035 | B17: 余安琴 | C17: 四小数学教师 | D17: 02 | E17: 44 | F17: 17.6 | G17: 缺考 | H17: 0 | I17: 17.6
A18: jsxd2023156 | B18: 伍成红 | C18: 中小学体育教研员 | D18: 02 | E18: 51.5 | F18: 20.6 | G18: 74.18 | H18: =G18*0.6 -> 44.508 | I18: 65.11
A19: jsxd2023158 | B19: 刘姬瑞 | C19: 中小学体育教研员 | D19: 02 | E19: 46.5 | F19: 18.6 | G19: 75.20 | H19: =G19*0.6 -> 45.12 | I19: 63.72
A20: jsxd2023157 | B20: 高胜 | C20: 中小学体育教研员 | D20: 02 | E20: 62 | F20: 24.8 | G20: 缺考 | H20: 0 | I20: 24.8
A21: jsxd2023083 | B21: 邵微 | C21: 四小体育教师 | D21: 04 | E21: 75 | F21: 30 | G21: 86.96 | H21: =G21*0.6 -> 52.176 | I21: 82.18
A22: jsxd2023084 | B22: 焦洪波 | C22: 四小体育教师 | D22: 04 | E22: 73 | F22: 29.2 | G22: 84.99 | H22: 50.994 | I22: 80.19
A23: jsxd2023085 | B23: 何思柱 | C23: 四小体育教师 | D23: 04 | E23: 69 | F23: 27.6 | G23: 86.58 | H23: 51.948 | I23: 79.55
A24: jsxd2023006 | B24: 邱鸿燕 | C24: 五小语文教师 | D24: 06 | E24: 62 | F24: 24.8 | G24: 86.67 | H24: 52.002 | I24: 76.8
A25: jsxd2023010 | B25: 刘曲 | C25: 五小语文教师 | D25: 06 | E25: 70.5 | F25: 28.2 | G25: 79.83 | H25: 47.898 | I25: 76.1
A26: jsxd2023009 | B26: 龙媚 | C26: 五小语文教师 | D26: 06 | E26: 71 | F26: 28.4 | G26: 79.03 | H26: 47.418 | I26: 75.82
A27: jsxd2023012 | B27: 康艳茹 | C27: 五小语文教师 | D27: 06 | E27: 72.5 | F27: 29 | G27: 76.83 | H27: 46.098 | I27: 75.1
A28: jsxd2023007 | B28: 马洪燕 | C28: 五小语文教师 | D28: 06 | E28: 59.5 | F28: 23.8 | G28: 85.27 | H28: 51.162 | I28: 74.96
A29: jsxd2023003 | B29: 吴艳 | C29: 五小语文教师 | D29: 06 | E29: 66.5 | F29: 26.6 | G29: 79.83 | H29: 47.898 | I29: 74.5
A30: jsxd2023001 | B30: 袁媛 | C30: 五小语文教师 | D30: 06 | E30: 66.5 | F30: 26.6 | G30: 77.73 | H30: 46.638 | I30: 73.24
A31: jsxd2023004 | B31: 王琪 | C31: 五小语文教师 | D31: 06 | E31: 68.5 | F31: 27.4 | G31: 75.93 | H31: 45.558 | I31: 72.96
A32: jsxd2023005 | B32: 尚华国 | C32: 五小语文教师 | D32: 06 | E32: 67 | F32: 26.8 | G32: 69.67 | H32: 41.802 | I32: 68.6
A33: jsxd2023013 | B33: 蒋莲 | C33: 五小语文教师 | D33: 06 | E33: 63.5 | F33: 25.4 | G33: 70.67 | H33: 42.402 | I33: 67.8
A34: jsxd2023008 | B34: 罗彧 | C34: 五小语文教师 | D34: 06 | E34: 63 | F34: 25.2 | G34: 缺考 | H34: 0 | I34: 25.2
A35: jsxd2023014 | B35: 黄明珠 | C35: 五小语文教师 | D35: 06 | E35: 62.5 | F35: 25 | G35: 缺考 | H35: 0 | I35: 25
A36: jsxd2023028 | B36: 赵祖丽 | C36: 五小数学教师 | D36: 07 | E36: 62 | F36: 24.8 | G36: 82.33 | H36: =G36*0.6 -> 49.398 | I36: 74.2
A37: jsxd2023033 | B37: 冯欣 | C37: 五小数学教师 | D37: 07 | E37: 57 | F37: 22.8 | G37: 80.33 | H37: =G37*0.6 -> 48.198 | I37: 71
A38: jsxd2023031 | B38: 何梅 | C38: 五小数学教师 | D38: 07 | E38: 53 | F38: 21.2 | G38: 80.66 | H38: =G38*0.6 -> 48.396 | I38: 69.6
A39: jsxd2023029 | B39: 康忠霞 | C39: 五小数学教师 | D39: 07 | E39: 53 | F39: 21.2 | G39: 77.66 | H39: =G39*0.6 -> 46.596 | I39: 67.8
A40: jsxd2023027 | B40: 周星 | C40: 五小数学教师 | D40: 07 | E40: 47 | F40: 18.8 | G40: 缺考 | H40: 0 | I40: 18.8
A41: jsxd2023032 | B41: 杭丹 | C41: 五小数学教师 | D41: 07 | E41: 43 | F41: 17.2 | G41: 缺考 | H41: 0 | I41: 17.2
A42: jsxd2023050 | B42: 曾霞 | C42: 五小英语教师 | D42: 08 | E42: 72.5 | F42: 29 | G42: 87.08 | H42: =G42*0.6 -> 52.248 | I42: 81.25
A43: jsxd2023046 | B43: 訾礼嫔 | C43: 五小英语教师 | D43: 08 | E43: 71.5 | F43: 28.6 | G43: 86.45 | H43: 51.87 | I43: 80.47
A44: jsxd2023051 | B44: 蔡霞 | C44: 五小英语教师 | D44: 08 | E44: 71 | F44: 28.4 | G44: 78.36 | H44: 47.016 | I44: 75.42
A45: jsxd2023082 | B45: 李梅 | C45: 五小体育教师 | D45: 09 | E45: 71 | F45: 28.4 | G45: 89.68 | H45: 53.808 | I45: 82.21
A46: jsxd2023076 | B46: 张娅 | C46: 五小体育教师 | D46: 09 | E46: 57 | F46: 22.8 | G46: 81.04 | H46: 48.624 | I46: 71.42
A47: jsxd2023079 | B47: 吴芙蓉 | C47: 五小体育教师 | D47: 09 | E47: 49 | F47: 19.6 | G47: 65.14 | H47: 39.084 | I47: 58.68
A48: jsxd2023073 | B48: 吴丹 | C48: 五小音乐教师 | D48: 10 | E48: 85 | F48: 34 | G48: 87.40 | H48: 52.44 | I48: 86.44
A49: jsxd2023071 | B49: 张佳 | C49: 五小音乐教师 | D49: 10 | E49: 82.5 | F49: 33 | G49: 86.94 | H49: 52.164 | I49: 85.16
A50: jsxd2023075 | B50: 陈晓梅 | C50: 五小音乐教师 | D50: 10 | E50: 81 | F50: 32.4 | G50: 缺考 | H50: 0 | I50: 32.4
A51: jsxd2023053 | B51: 冉成丽 | C51: 五小信息技术 | D51: 11 | E51: 78 | F51: 31.2 | G51: 83.00 | H51: =G51*0.6 -> 49.8 | I51: 81
A52: jsxd2023052 | B52: 任忠花 | C52: 五小信息技术 | D52: 11 | E52: 87 | F52: 34.8 | G52: 76.00 | H52: 45.6 | I52: 80.4
A53: jsxd2023055 | B53: 蒋彩云 | C53: 五小信息技术 | D53: 11 | E53: 63 | F53: 25.2 | G53: 78.00 | H53: 46.8 | I53: 72
A54: jsxd2023111 | B54: 赵丹 | C54: 幼儿园教师 | D54: 12 | E54: 66 | F54: 26.4 | G54: 92.17 | H54: 55.302 | I54: 81.7
A55: jsxd2023123 | B55: 代玲玲 | C55: 幼儿园教师 | D55: 12 | E55: 70 | F55: 28 | G55: 89.00 | H55: 53.4 | I55: 81.4
A56: jsxd2023140 | B56: 聂文婷 | C56: 幼儿园教师 | D56: 12 | E56: 73 | F56: 29.2 | G56: 85.17 | H56: 51.102 | I56: 80.3
A57: jsxd2023151 | B57: 陈菊 | C57: 幼儿园教师 | D57: 12 | E57: 66.5 | F57: 26.6 | G57: 88.30 | H57: 52.98 | I57: 79.58
A58: jsxd2023139 | B58: 欧阳大利 | C58: 幼儿园教师 | D58: 12 | E58: 69 | F58: 27.6 | G58: 86.40 | H58: 51.84 | I58: 79.44
A59: jsxd2023134 | B59: 王清亭 | C59: 幼儿园教师 | D59: 12 | E59: 67.5 | F59: 27 | G59: 84.00 | H59: 50.4 | I59: 77.4
A60: jsxd2023135 | B60: 王兰兰 | C60: 幼儿园教师 | D60: 12 | E60: 62.5 | F60: 25 | G60: 85.33 | H60: 51.198 | I60: 76.2
A61: jsxd2023148 | B61: 高江弦 | C61: 幼儿园教师 | D61: 12 | E61: 66 | F61: 26.4 | G61: 82.53 | H61: 49.518 | I61: 75.92
A62: jsxd2023108 | B62: 朱贤萍 | C62: 幼儿园教师 | D62: 12 | E62: 64 | F62: 25.6 | G62: 83.67 | H62: 50.202 | I62: 75.8
A63: jsxd2023136 | B63: 谭好 | C63: 幼儿园教师 | D63: 12 | E63: 63 | F63: 25.2 | G63: 84.33 | H63: 50.598 | I63: 75.8
A64: jsxd2023125 | B64: 陈雪 | C64: 幼儿园教师 | D64: 12 | E64: 60 | F64: 24 | G64: 85.20 | H64: 51.12 | I64: 75.12
A65: jsxd2023112 | B65: 杨桃 | C65: 幼儿园教师 | D65: 12 | E65: 60 | F65: 24 | G65: 84.60 | H65: 50.76 | I65: 74.76
A66: jsxd2023131 | B66: 王玉会 | C66: 幼儿园教师 | D66: 12 | E66: 60.5 | F66: 24.2 | G66: 83.33 | H66: 49.998 | I66: 74.2
A67: jsxd2023138 | B67: 舒腾艳 | C67: 幼儿园教师 | D67: 12 | E67: 60 | F67: =E67*0.4 -> 24 | G67: 83.27 | H67: 49.962 | I67: 73.96
A68: jsxd2023146 | B68: 黄冬竹 | C68: 幼儿园教师 | D68: 12 | E68: 66 | F68: 26.4 | G68: 79.03 | H68: 47.418 | I68: =ROUND((F68+H68),2) -> 73.82
A69: jsxd2023141 | B69: 罗倩 | C69: 幼儿园教师 | D69: 12 | E69: 55.5 | F69: 22.2 | G69: 83.27 | H69: 49.962 | I69: 72.16
A70: jsxd2023117 | B70: 吴明锦 | C70: 幼儿园教师 | D70: 12 | E70: 57.5 | F70: 23 | G70: 81.50 | H70: 48.9 | I70: 71.9
A71: jsxd2023126 | B71: 曾琴 | C71: 幼儿园教师 | D71: 12 | E71: 55.5 | F71: 22.2 | G71: 81.17 | H71: 48.702 | I71: 70.9
A72: jsxd2023121 | B72: 龚金艳 | C72: 幼儿园教师 | D72: 12 | E72: 61 | F72: 24.4 | G72: 76.67 | H72: 46.002 | I72: 70.4
A73: jsxd2023143 | B73: 刘尹 | C73: 幼儿园教师 | D73: 12 | E73: 60 | F73: 24 | G73: 75.70 | H73: 45.42 | I73: 69.42
A74: jsxd2023142 | B74: 龙汉芳 | C74: 幼儿园教师 | D74: 12 | E74: 54 | F74: 21.6 | G74: 78.30 | H74: 46.98 | I74: 68.58
A75: jsxd2023128 | B75: 赵淑静 | C75: 幼儿园教师 | D75: 12 | E75: 54 | F75: 21.6 | G75: 77.47 | H75: 46.482 | I75: 68.08
A76: jsxd2023127 | B76: 周桂 | C76: 幼儿园教师 | D76: 12 | E76: 63 | F76: 25.2 | G76: 缺考 | H76: 0 | I76: 25.2
A77: jsxd2023122 | B77: 杜婷 | C77: 幼儿园教师 | D77: 12 | E77: 54 | F77: 21.6 | G77: 缺考 | H77: 0 | I77: 21.6
A78: jsxd2023023 | B78: 申玙璠 | C78: 二中语文教师 | D78: 13 | E78: 75.5 | F78: 30.2 | G78: 83.57 | H78: =G78*0.6 -> 50.142 | I78: 80.34
A79: jsxd2023025 | B79: 何亚丽 | C79: 二中语文教师 | D79: 13 | E79: 67 | F79: 26.8 | G79: 83.00 | H79: 49.8 | I79: 76.6
A80: jsxd2023022 | B80: 张琳浚 | C80: 二中语文教师 | D80: 13 | E80: 60 | F80: 24 | G80: 87.00 | H80: 52.2 | I80: 76.2
A81: jsxd2023026 | B81: 高静 | C81: 二中语文教师 | D81: 13 | E81: 70 | F81: 28 | G81: 79.37 | H81: 47.622 | I81: 75.62
A82: jsxd2023044 | B82: 陈永祥 | C82: 二中数学教师 | D82: 14 | E82: 82 | F82: 32.8 | G82: 80.33 | H82: 48.198 | I82: 81
A83: jsxd2023043 | B83: 李绍坤 | C83: 二中数学教师 | D83: 14 | E83: 73.5 | F83: 29.4 | G83: 79.66 | H83: 47.796 | I83: 77.2
A84: jsxd2023045 | B84: 柏华艳 | C84: 二中数学教师 | D84: 14 | E84: 67.5 | F84: 27 | G84: 81.66 | H84: 48.996 | I84: 76
A85: jsxd2023041 | B85: 王华伟 | C85: 二中数学教师 | D85: 14 | E85: 70 | F85: 28 | G85: 79.33 | H85: 47.598 | I85: 75.6
A86: jsxd2023040 | B86: 吴娟 | C86: 二中数学教师 | D86: 14 | E86: 63.5 | F86: 25.4 | G86: 75.00 | H86: 45 | I86: 70.4
A87: jsxd2023042 | B87: 田宏龙 | C87: 二中数学教师 | D87: 14 | E87: 48 | F87: 19.2 | G87: 缺考 | H87: 0 | I87: 19.2
A88: jsxd2023064 | B88: 肖娴 | C88: 二中英语教师 | D88: 15 | E88: 76 | F88: 30.4 | G88: 85.65 | H88: =G88*0.6 -> 51.39 | I88: 81.79
A89: jsxd2023068 | B89: 孔巧霖 | C89: 二中英语教师 | D89: 15 | E89: 61 | F89: 24.4 | G89: 84.70 | H89: 50.82 | I89: 75.22
A90: jsxd2023069 | B90: 陈转弟 | C90: 二中英语教师 | D90: 15 | E90: 58 | F90: 23.2 | G90: 82.85 | H90: 49.71 | I90: 72.91
A91: jsxd2023063 | B91: 徐晶晶 | C91: 二中英语教师 | D91: 15 | E91: 62 | F91: 24.8 | G91: 78.29 | H91: 46.974 | I91: 71.77
A92: jsxd2023066 | B92: 刘艳 | C92: 二中英语教师 | D92: 15 | E92: 60.5 | F92: 24.2 | G92: 76.20 | H92: 45.72 | I92: 69.92
A93: jsxd2023060 | B93: 朱桂 | C93: 二中英语教师 | D93: 15 | E93: 64 | F93: 25.6 | G93: 73.19 | H93: 43.914 | I93: 69.51
A94: jsxd2023062 | B94: 杨利辉 | C94: 二中英语教师 | D94: 15 | E94: 65 | F94: 26 | G94: 70.08 | H94: 42.048 | I94: 68.05
A95: jsxd2023061 | B95: 杨维 | C95: 二中英语教师 | D95: 15 | E95: 55.5 | F95: 22.2 | G95: 74.06 | H95: 44.436 | I95: 66.64
A96: jsxd2023090 | B96: 朱启宾 | C96: 二中物理教师 | D96: 16 | E96: 85 | F96: 34 | G96: 87.96 | H96: 52.776 | I96: 86.78
A97: jsxd2023092 | B97: 马文江 | C97: 二中物理教师 | D97: 16 | E97: 73.5 | F97: 29.4 | G97: 79.70 | H97: 47.82 | I97: 77.22
A98: jsxd2023089 | B98: 朱秋吉 | C98: 二中物理教师 | D98: 16 | E98: 69 | F98: 27.6 | G98: 80.50 | H98: 48.3 | I98: 75.9
A99: jsxd2023091 | B99: 石开辉 | C99: 二中物理教师 | D99: 16 | E99: 71 | F99: 28.4 | G99: 缺考 | H99: 0 | I99: 28.4
A100: jsxd2023107 | B100: 蒋安娓 | C100: 二中道德与法治教师 | D100: 17 | E100: 73.5 | F100: 29.4 | G100: 86.60 | H100: =G100*0.6 -> 51.96 | I100: 81.36
A101: jsxd2023106 | B101: 卢娟 | C101: 二中道德与法治教师 | D101: 17 | E101: 51.5 | F101: 20.6 | G101: 缺考 | H101: 0 | I101: 20.6
A102: jsxd2023097 | B102: 田孟军 | C102: 二中历史教师 | D102: 18 | E102: 68.5 | F102: 27.4 | G102: 85.20 | H102: =G102*0.6 -> 51.12 | I102: 78.52
A103: jsxd2023098 | B103: 潘树燕 | C103: 二中历史教师 | D103: 18 | E103: 57.5 | F103: 23 | G103: 81.20 | H103: =G103*0.6 -> 48.72 | I103: 71.72
A104: jsxd2023103 | B104: 张翠 | C104: 二中地理教师 | D104: 19 | E104: 68 | F104: 27.2 | G104: 90.20 | H104: =G104*0.6 -> 54.12 | I104: 81.32
A105: jsxd2023105 | B105: 柯丹 | C105: 二中地理教师 | D105: 19 | E105: 65.5 | F105: 26.2 | G105: 89.80 | H105: =G105*0.6 -> 53.88 | I105: 80.08
A106: jsxd2023104 | B106: 李昌群 | C106: 二中地理教师 | D106: 19 | E106: 52 | F106: 20.8 | G106: 缺考 | H106: 0 | I106: 20.8
A107: jsxd2023093 | B107: 杨燕荣 | C107: 二中生物教师 | D107: 20 | E107: 79.5 | F107: 31.8 | G107: 85.80 | H107: =G107*0.6 -> 51.48 | I107: 83.28
A108: jsxd2023094 | B108: 熊慧芳 | C108: 二中生物教师 | D108: 20 | E108: 63.5 | F108: 25.4 | G108: 83.46 | H108: =G108*0.6 -> 50.076 | I108: 75.48
A109: jsxd2023096 | B109: 刘汉凤 | C109: 二中生物教师 | D109: 20 | E109: 67 | F109: 26.8 | G109: 76.16 | H109: =G109*0.6 -> 45.696 | I109: 72.5
A110: jsxd2023086 | B110: 吴展满 | C110: 二中体育教师 | D110: 21 | E110: 56.5 | F110: 22.6 | G110: 88.88 | H110: =G110*0.6 -> 53.328 | I110: 75.93
A111: jsxd2023088 | B111: 蒋崇晶 | C111: 二中体育教师 | D111: 21 | E111: 49 | F111: 19.6 | G111: 68.86 | H111: =G111*0.6 -> 41.316 | I111: 60.92
A112: jsxd2023087 | B112: 潘仁海 | C112: 二中体育教师 | D112: 21 | E112: 53.5 | F112: 21.4 | G112: 缺考 | H112: 0 | I112: 21.4
A113: jsxd2023101 | B113: 王加立 | C113: 二中化学教师 | D113: 22 | E113: 69 | F113: 27.6 | G113: 85.24 | H113: =G113*0.6 -> 51.144 | I113: 78.74
A114: jsxd2023100 | B114: 王凌云 | C114: 二中化学教师 | D114: 22 | E114: 65 | F114: 26 | G114: 83.70 | H114: =G114*0.6 -> 50.22 | I114: 76.22
A115: jsxd2023099 | B115: 赵波波 | C115: 二中化学教师 | D115: 22 | E115: 65 | F115: 26 | G115: 79.48 | H115: =G115*0.6 -> 47.688 | I115: 73.69

Sheet Sheet3
